bitfinex/quotes_SOLUSD_20241210
["timestamp","ask_amount","ask_price","bid_price","bid_amount"]
[1733800135323,1.01225499,211.53,211.45,0.5606986]
[1733800136024,20.0,211.49,211.29,6.2227]
[1733800136221,1.01236594,211.48,211.38,23.62812145]
[1733800136810,1.01236594,211.48,211.37,23.62812145]
[1733800137014,1.01236594,211.48,211.35,23.62812145]
[1733800137191,1.01236594,211.48,211.35,27.84445165]
[1733800137192,23.776884,211.47,211.35,27.84445165]
[1733800137396,0.12549,211.43,211.35,27.84445165]
[1733800137609,1.01248534,211.43,211.36,23.62812145]
[1733800137917,1.0124207,211.43,211.38,23.62812145]
[1733800138112,0.12549,211.43,211.38,23.62812145]
[1733800138317,0.12549,211.43,211.37,4.2163302]
[1733800138318,0.12549,211.43,211.39,23.62812145]
[1733800138893,0.12549,211.43,211.37,4.2163302]
[1733800139632,0.12549,211.43,211.39,23.62812145]
[1733800139787,0.12549,211.45,211.39,23.62812145]
[1733800139993,20.0,211.54,211.39,23.62812145]
[1733800140306,0.86001616,211.53,211.39,23.62812145]
[1733800140509,0.86001616,211.53,211.41,23.62812145]
[1733800140695,0.86001616,211.53,211.4,23.62812145]
[1733800141022,0.86001616,211.53,211.39,23.62812145]
[1733800141604,0.86001616,211.53,211.41,23.62812145]
[1733800141821,1.91399493,211.54,211.44,23.62812145]
[1733800142028,0.86001616,211.53,211.44,23.62812145]
[1733800142199,10.0,211.57,211.39,23.62812145]
[1733800142522,0.86001616,211.56,211.38,23.62812145]
[1733800142704,0.86001616,211.56,211.45,23.62812145]
[1733800142910,1.90476132,211.63,211.45,23.62812145]
[1733800142911,0.86001616,211.62,211.45,23.62812145]
[1733800143226,10.0,211.6,211.4,23.62812145]
[1733800143455,0.86001616,211.59,211.43,23.62812145]
[1733800143601,10.86001616,211.59,211.41,23.62812145]
[1733800143793,0.86001616,211.59,211.43,23.62812145]
[1733800144026,20.0,211.57,211.42,23.62812145]
[1733800144325,20.0,211.52,211.43,23.62812145]
[1733800144528,0.86001616,211.51,211.43,23.62812145]
[1733800144828,0.86001616,211.54,211.47,23.62812145]
[1733800144995,0.86001616,211.62,211.44,0.70934043]
[1733800145204,5.24102983,211.61,211.42,23.62812145]
[1733800145396,0.86001616,211.6,211.45,23.62812145]
[1733800145631,0.86001616,211.6,211.46,23.62812145]
[1733800145937,0.86001616,211.6,211.45,23.62812145]
[1733800146102,0.86001616,211.6,211.47,23.62812145]
[1733800146419,0.86001616,211.62,211.51,23.62812145]
[1733800146627,0.86001616,211.62,211.48,23.62812145]
[1733800147010,0.86001616,211.62,211.47,23.62812145]
[1733800147545,0.86001616,211.62,211.46,23.62812145]
[1733800147839,0.86001616,211.62,211.48,23.62812145]
[1733800148045,0.86001616,211.62,211.47,23.62812145]
[1733800148336,0.86001616,211.62,211.54,23.62812145]
[1733800148513,0.86001616,211.7,211.56,23.62812145]
[1733800148714,0.86001616,211.7,211.6,23.62812145]
[1733800149229,0.86001616,211.7,211.59,23.62812145]
[1733800149407,0.86001616,211.7,211.52,23.62812145]
[1733800149607,2.8511177,211.7,211.51,23.62812145]
[1733800149833,2.8511177,211.7,211.53,23.62812145]
[1733800150343,2.8511177,211.7,211.6,23.62812145]
[1733800150344,0.86001616,211.7,211.6,23.62812145]
[1733800150511,0.86001616,211.7,211.54,0.70890489]
[1733800150707,1.90100227,211.71,211.59,23.62812145]
[1733800151020,0.86001616,211.79,211.6,23.62812145]
[1733800151229,0.86001616,211.79,211.63,23.62812145]
[1733800151541,0.86001616,211.79,211.61,23.62812145]
[1733800151737,10.86001616,211.79,211.57,23.62812145]
[1733800151948,10.0,211.77,211.53,23.62812145]
[1733800152120,6.10104599,211.76,211.53,23.62812145]
[1733800152440,0.12549,211.75,211.6,23.62812145]
[1733800152618,0.12549,211.75,211.62,23.62812145]
[1733800153017,0.98550616,211.75,211.6,23.62812145]
[1733800153242,2.86305949,211.75,211.58,23.62812145]
[1733800153449,0.98550616,211.75,211.59,23.62812145]
[1733800153745,0.12549,211.75,211.62,23.62812145]
[1733800153941,0.86001616,211.77,211.6,23.62812145]
[1733800154450,0.86001616,211.77,211.61,23.62812145]
[1733800154753,0.86001616,211.77,211.54,10.70858063]
[1733800154754,0.86001616,211.77,211.6,23.62812145]
[1733800155052,0.12549,211.76,211.58,23.62812145]
[1733800155226,0.12549,211.74,211.62,23.62812145]
[1733800155753,0.12549,211.74,211.56,0.70858108]
[1733800155938,20.0,211.78,211.56,0.70858108]
[1733800155939,0.12549,211.76,211.61,23.62812145]
[1733800156254,0.12549,211.74,211.61,23.62812145]
[1733800156626,0.12549,211.74,211.58,0.70860867]
[1733800156627,0.12549,211.74,211.59,23.62812145]
[1733800157146,20.0,211.66,211.54,23.62812145]
[1733800157324,0.98550616,211.65,211.53,3.6291138]
[1733800157753,0.12549,211.6,211.53,3.6291138]
[1733800158047,20.0,211.56,211.53,3.6291138]
[1733800158251,0.12549,211.54,211.53,3.6291138]
[1733800159025,0.12549,211.63,211.53,3.6291138]
[1733800159222,0.98550616,211.63,211.53,3.6291138]
[1733800159550,0.12549,211.63,211.53,3.6291138]
[1733800159926,0.12549,211.63,211.53,27.25723525]
[1733800160132,0.86001616,211.75,211.57,23.62812145]
[1733800160427,2.75220686,211.75,211.62,23.62812145]
[1733800160626,0.86001616,211.75,211.63,23.62812145]
[1733800160941,0.86001616,211.75,211.6,23.62812145]
[1733800161332,0.86001616,211.75,211.59,23.62812145]
[1733800161534,10.0,211.7,211.54,0.70871645]
[1733800161731,24.17,211.64,211.42,23.62812145]
[1733800161927,24.17,211.64,211.37,6.2954]
[1733800161928,25.03001616,211.63,211.4,23.62812145]
[1733800162128,21.18477486,211.63,211.4,23.62812145]
[1733800162342,23.776884,211.61,211.4,23.62812145]
[1733800162544,23.776884,211.59,211.4,23.62812145]
[1733800162852,0.12549,211.51,211.39,23.62812145]
[1733800163252,0.12549,211.51,211.39,38.41847138]
[1733800163556,0.12549,211.51,211.45,39.00568778]
[1733800163932,0.12549,211.51,211.46,38.41847138]
[1733800164255,0.12549,211.51,211.45,0.5872164]
[1733800164430,0.12549,211.51,211.46,38.41847138]
[1733800165055,0.86001616,211.63,211.48,38.41847138]
[1733800165360,21.84083468,211.66,211.49,38.41847138]
[1733800165528,0.86001616,211.65,211.49,38.41847138]
[1733800165725,20.0,211.62,211.49,38.41847138]
[1733800166039,0.86001616,211.61,211.49,38.41847138]
[1733800166231,0.86001616,211.61,211.47,38.41847138]
[1733800166837,0.86001616,211.61,211.46,38.41847138]
[1733800167042,0.86001616,211.61,211.45,0.5872164]
[1733800167043,20.0,211.57,211.45,0.5872164]
[1733800167357,0.12549,211.52,211.45,0.5872164]
[1733800167536,20.0,211.48,211.45,0.5872164]
[1733800167857,0.98550616,211.47,211.45,0.5872164]
[1733800168538,0.12549,211.47,211.45,0.5872164]
[1733800168940,0.86001616,211.6,211.45,39.00568778]
[1733800169447,0.86001616,211.6,211.45,0.5872164]
[1733800169645,10.0,211.59,211.45,0.5872164]
[1733800169865,0.86001616,211.58,211.45,0.5872164]
[1733800170035,23.902374,211.57,211.45,0.5872164]
[1733800170237,0.12549,211.51,211.45,0.5872164]
[1733800170426,0.98550616,211.51,211.45,0.5872164]
[1733800170954,0.86001616,211.54,211.45,0.5872164]
[1733800171162,0.86001616,211.6,211.45,0.5872164]
[1733800171345,0.86001616,211.6,211.47,38.41847138]
[1733800171536,10.0,211.7,211.47,38.41847138]
[1733800171537,1.8956515,211.64,211.47,38.41847138]
[1733800171735,0.86001616,211.63,211.47,38.41847138]
[1733800172038,15.03001616,211.7,211.47,38.41847138]
[1733800172237,0.86001616,211.7,211.48,38.41847138]
[1733800172467,0.86001616,211.7,211.52,38.41847138]
[1733800172674,0.86001616,211.7,211.46,0.70906849]
[1733800172675,0.86001616,211.7,211.48,38.41847138]
[1733800172970,15.03001616,211.7,211.48,38.41847138]
[1733800173147,34.17,211.69,211.47,38.41847138]
[1733800173336,0.86001616,211.68,211.46,38.41847138]
[1733800173532,20.0,211.66,211.46,38.41847138]
[1733800173759,0.86001616,211.65,211.51,38.41847138]
[1733800173936,0.86001616,211.69,211.51,38.41847138]
[1733800174138,0.86001616,211.69,211.5,38.41847138]
[1733800174559,0.86001616,211.69,211.53,38.41847138]
[1733800174987,0.86001616,211.69,211.54,38.41847138]
[1733800175265,0.86001616,211.73,211.53,38.41847138]
[1733800175447,6.60660155,211.73,211.52,38.41847138]
[1733800175850,6.60660155,211.73,211.51,38.41847138]
[1733800175851,20.77660155,211.73,211.51,38.41847138]
[1733800176058,20.0,211.65,211.47,1.6575]
[1733800176259,20.86001616,211.64,211.47,1.6575]
[1733800176435,20.86001616,211.64,211.47,40.07597138]
[1733800176436,0.86001616,211.64,211.47,40.07597138]
[1733800176845,0.86001616,211.64,211.5,38.41847138]
[1733800177052,0.86001616,211.66,211.53,38.41847138]
[1733800177265,10.0,211.76,211.53,38.41847138]
[1733800177266,0.86001616,211.7,211.59,38.41847138]
[1733800177441,0.86001616,211.74,211.62,38.41847138]
[1733800177652,0.86001616,211.8,211.62,38.41847138]
[1733800178336,0.86001616,211.8,211.64,38.41847138]
[1733800178658,0.86001616,211.8,211.66,38.41847138]
[1733800178855,0.86001616,211.8,211.67,38.41847138]
[1733800179050,0.86001616,211.8,211.66,38.41847138]
[1733800179839,0.86001616,211.8,211.61,1.6575]
[1733800180036,20.12549,211.77,211.61,1.6575]
[1733800180239,20.12549,211.77,211.54,38.41847138]
[1733800180240,20.0,211.73,211.54,38.41847138]
[1733800180460,0.12549,211.7,211.53,38.41847138]
[1733800180661,0.98550616,211.7,211.56,38.41847138]
[1733800180958,0.98550616,211.7,211.55,38.41847138]
[1733800181537,0.12549,211.7,211.54,38.41847138]
[1733800181737,0.98550616,211.7,211.55,38.41847138]
[1733800181937,0.98550616,211.7,211.54,38.41847138]
[1733800182556,0.98550616,211.7,211.5,38.41847138]
[1733800182557,23.902374,211.65,211.5,38.41847138]
[1733800182760,0.12549,211.61,211.48,38.41847138]
[1733800182945,0.98550616,211.61,211.5,38.41847138]
[1733800183263,0.12549,211.56,211.45,2.1924164]
[1733800183452,0.98550616,211.56,211.45,2.1924164]
[1733800184073,0.98550616,211.56,211.46,38.41847138]
[1733800184772,0.98550616,211.56,211.45,2.1924164]
[1733800184773,23.776884,211.55,211.45,0.5872164]
[1733800184947,0.12549,211.51,211.45,0.5872164]
[1733800185148,0.98550616,211.54,211.45,0.5872164]
[1733800185971,0.12549,211.55,211.45,39.00568778]
[1733800186268,0.12549,211.53,211.45,39.00568778]
[1733800186772,0.86001616,211.55,211.46,38.41847138]
[1733800186953,0.86001616,211.64,211.46,38.41847138]
[1733800187348,20.0,211.63,211.46,38.41847138]
[1733800187548,0.86001616,211.62,211.45,0.5872164]
[1733800187748,23.902374,211.61,211.45,39.00568778]
[1733800187949,0.12549,211.53,211.45,0.5872164]
[1733800188178,0.98550616,211.53,211.45,0.5872164]
[1733800189275,0.12549,211.48,211.45,0.5872164]
[1733800189446,0.98550616,211.48,211.45,0.5872164]
[1733800189646,0.12549,211.46,211.45,0.5872164]
[1733800189870,0.98550616,211.46,211.45,0.5872164]
[1733800190073,24.76239016,211.46,211.45,0.5872164]
[1733800191877,24.76239016,211.46,211.3,38.41847138]
[1733800192169,23.776884,211.41,211.28,38.41847138]
[1733800192389,23.776884,211.41,211.24,0.5872164]
[1733800192390,23.902374,211.35,211.24,0.5872164]
[1733800192592,0.12549,211.33,211.24,0.5872164]
[1733800193658,0.98550616,211.35,211.24,0.5872164]
[1733800194485,0.98550616,211.35,211.25,38.41847138]
[1733800194665,14.17,211.47,211.24,0.5872164]
[1733800194666,0.12549,211.37,211.31,38.41847138]
[1733800194870,10.0,211.51,211.3,38.41847138]
[1733800195072,0.86001616,211.5,211.29,38.41847138]
[1733800195465,0.86001616,211.5,211.3,38.41847138]
[1733800195780,24.17,211.49,211.27,38.41847138]
[1733800195979,20.0,211.46,211.27,38.41847138]
[1733800196286,20.0,211.46,211.24,0.5872164]
[1733800196287,0.86001616,211.45,211.36,38.41847138]
[1733800196484,0.86001616,211.52,211.37,38.41847138]
[1733800196664,0.86001616,211.52,211.38,38.41847138]
[1733800196859,0.86001616,211.56,211.38,38.41847138]
[1733800197065,0.86001616,211.56,211.28,17.9359]
[1733800197066,0.86001616,211.56,211.33,38.41847138]
[1733800197364,0.86001616,211.56,211.35,38.41847138]
[1733800197565,0.86001616,211.56,211.34,38.41847138]
[1733800197775,20.0,211.54,211.35,38.41847138]
[1733800197988,0.86001616,211.53,211.35,38.41847138]
[1733800198570,0.86001616,211.53,211.35,0.7094816]
[1733800198890,0.86001616,211.53,211.37,38.41847138]
[1733800199272,0.86001616,211.53,211.36,38.41847138]
[1733800199597,0.86001616,211.53,211.37,39.12793145]
[1733800199775,21.85051583,211.57,211.31,38.41847138]
[1733800199776,0.12549,211.52,211.36,38.41847138]
[1733800199973,0.86001616,211.52,211.38,38.41847138]
[1733800200181,0.86001616,211.56,211.44,38.41847138]
[1733800200381,0.86001616,211.56,211.45,38.41847138]
[1733800200693,10.0,211.69,211.46,38.41847138]
[1733800200694,0.86001616,211.68,211.46,38.41847138]
[1733800200866,0.86001616,211.68,211.48,38.41847138]
[1733800201069,0.86001616,211.68,211.47,38.41847138]
[1733800201262,0.86001616,211.68,211.51,38.41847138]
[1733800201569,0.86001616,211.68,211.54,38.41847138]
[1733800202000,0.86001616,211.68,211.57,38.41847138]
[1733800202167,0.86001616,211.76,211.55,38.41847138]
[1733800202370,10.0,211.75,211.5,38.41847138]
[1733800202568,0.86001616,211.74,211.58,38.41847138]
[1733800202781,0.86001616,211.79,211.62,38.41847138]
[1733800203099,0.86001616,211.79,211.63,38.41847138]
[1733800203392,0.86001616,211.79,211.62,38.41847138]
[1733800203595,0.86001616,211.79,211.68,38.41847138]
[1733800203766,0.86001616,211.8,211.69,39.12685911]
[1733800203967,0.86001616,211.8,211.63,38.41847138]
[1733800204177,0.86001616,211.8,211.59,38.41847138]
[1733800204376,0.86001616,211.8,211.61,38.41847138]
[1733800204578,0.86001616,211.8,211.6,38.41847138]
[1733800204894,0.86001616,211.8,211.57,6.4088]
[1733800205099,23.776884,211.75,211.57,6.4088]
[1733800205277,20.0,211.76,211.4,18.917367]
[1733800205278,23.902374,211.66,211.4,18.917367]
[1733800205480,23.902374,211.66,211.46,38.41847138]
[1733800205481,0.12549,211.62,211.46,38.41847138]
[1733800205686,0.12549,211.6,211.46,38.41847138]
[1733800205889,0.12549,211.6,211.39,6.4088]
[1733800205890,0.12549,211.49,211.39,45.53643588]
[1733800206076,0.98550616,211.49,211.39,6.4088]
[1733800206276,0.12549,211.44,211.33,6.4088]
[1733800206478,20.0,211.4,211.32,7.33572596]
[1733800206785,0.98550616,211.39,211.32,7.33572596]
[1733800207698,0.12549,211.39,211.32,7.33572596]
[1733800207892,20.0,211.47,211.32,7.33572596]
[1733800207893,0.12549,211.41,211.33,38.41847138]
[1733800208093,0.12549,211.41,211.32,7.33572596]
[1733800208804,0.12549,211.39,211.32,7.33572596]
[1733800209178,23.776884,211.49,211.33,39.12806871]
[1733800209501,0.86001616,211.48,211.36,38.41847138]
[1733800209704,5.0,211.53,211.36,38.41847138]
[1733800209705,0.86001616,211.52,211.36,38.41847138]
[1733800210008,0.86001616,211.52,211.35,38.41847138]
[1733800210192,5.0,211.53,211.35,38.41847138]
[1733800210390,0.47348877,211.52,211.38,38.41847138]
[1733800210577,0.47348877,211.52,211.4,38.41847138]
[1733800210771,0.47348877,211.52,211.39,38.41847138]
[1733800210979,5.0,211.53,211.39,38.41847138]
[1733800211306,5.0,211.53,211.38,39.12773779]
[1733800211601,0.47348877,211.52,211.32,38.41847138]
[1733800211900,20.0,211.5,211.34,38.41847138]
[1733800212201,5.0,211.53,211.41,38.41847138]
[1733800212409,5.0,211.53,211.42,38.41847138]
[1733800212585,5.0,211.53,211.42,39.12775807]
[1733800212788,5.0,211.53,211.46,38.41847138]
[1733800213110,5.0,211.53,211.44,38.41847138]
[1733800213281,5.0,211.53,211.42,39.12775807]
[1733800213483,0.47348877,211.52,211.38,38.41847138]
[1733800213886,5.0,211.53,211.43,38.41847138]
[1733800214505,5.0,211.53,211.44,38.41847138]
[1733800214706,0.47348877,211.52,211.38,38.41847138]
[1733800214881,24.25037277,211.52,211.39,38.41847138]
[1733800215081,24.25037277,211.52,211.31,44.82727138]
[1733800215082,23.902374,211.51,211.33,38.41847138]
[1733800215406,23.902374,211.49,211.31,44.82727138]
[1733800215594,0.12549,211.47,211.31,44.82727138]
[1733800215770,0.12549,211.47,211.35,38.41847138]
[1733800215973,0.12549,211.47,211.36,38.41847138]
[1733800216198,0.12549,211.47,211.38,38.41847138]
[1733800216393,5.0,211.53,211.41,38.41847138]
[1733800216604,5.0,211.53,211.44,38.41847138]
[1733800216984,5.0,211.53,211.43,38.41847138]
[1733800217206,5.0,211.53,211.46,38.41847138]
[1733800217411,5.0,211.53,211.48,38.41847138]
[1733800217581,5.0,211.53,211.52,38.41847138]
[1733800218086,0.47348877,211.75,211.52,100.61382676]
[1733800218305,0.47348877,211.75,211.58,38.41847138]
[1733800218619,0.47348877,211.75,211.54,38.41847138]
[1733800218814,0.47348877,211.75,211.53,38.41847138]
[1733800219118,0.47348877,211.77,211.57,38.41847138]
[1733800220207,0.47348877,211.77,211.58,38.41847138]
[1733800220579,23.902374,211.76,211.56,38.41847138]
[1733800220882,23.902374,211.74,211.57,38.41847138]
[1733800221088,0.12549,211.72,211.57,38.41847138]
[1733800221404,0.12549,211.72,211.59,38.41847138]
[1733800221712,0.47348877,211.8,211.69,38.41847138]
[1733800221898,18.917367,211.81,211.62,45.00127138]
[1733800221899,0.47348877,211.79,211.62,45.00127138]
[1733800222204,0.47348877,211.79,211.64,38.41847138]
[1733800222400,0.47348877,211.79,211.65,38.41847138]
[1733800222789,0.47348877,211.8,211.66,38.41847138]
[1733800223581,0.47348877,211.8,211.67,38.41847138]
[1733800223788,0.47348877,211.8,211.65,38.41847138]
[1733800223986,0.47348877,211.8,211.67,38.41847138]
[1733800224192,0.47348877,211.8,211.63,0.70861595]
[1733800224193,0.47348877,211.8,211.69,38.41847138]
[1733800224597,18.917367,211.81,211.73,38.41847138]
[1733800224799,18.917367,211.81,211.78,38.41847138]
[1733800225322,0.47348877,211.9,211.77,38.41847138]
[1733800225689,18.908705,211.89,211.76,38.41847138]
[1733800225897,1.86838632,211.95,211.77,39.12659656]
[1733800226196,10.0,211.92,211.68,38.41847138]
[1733800226516,10.0,211.86,211.63,38.41847138]
[1733800226722,10.0,211.86,211.6,1.5209]
[1733800226723,20.0,211.86,211.62,38.41847138]
[1733800226920,10.0,211.82,211.61,38.41847138]
[1733800227121,23.902374,211.77,211.57,38.41847138]
[1733800227411,20.0,211.78,211.52,1.5295]
[1733800227412,0.12549,211.65,211.52,38.41847138]
[1733800227612,0.12549,211.65,211.48,6.6134]
[1733800227613,0.12549,211.61,211.51,38.41847138]
[1733800227794,0.12549,211.61,211.48,6.6134]
[1733800227795,0.12549,211.61,211.55,38.41847138]
[1733800227995,0.12549,211.61,211.51,38.41847138]
[1733800228489,0.12549,211.61,211.53,38.41847138]
[1733800228690,0.12549,211.61,211.51,38.41847138]
[1733800228889,0.12549,211.61,211.57,38.41847138]
[1733800229121,10.0,211.8,211.6,38.41847138]
[1733800229122,3.3927,211.8,211.6,38.41847138]
[1733800229288,3.3927,211.8,211.64,38.41847138]
[1733800229491,3.3927,211.8,211.65,38.41847138]
[1733800229794,3.3927,211.8,211.64,38.41847138]
[1733800230391,3.3927,211.8,211.61,38.41847138]
[1733800230602,3.3927,211.8,211.62,38.41847138]
[1733800230817,3.3927,211.8,211.64,38.41847138]
[1733800231025,3.3927,211.8,211.65,38.41847138]
[1733800231187,3.3927,211.8,211.66,38.41847138]
[1733800231383,5.30482165,211.87,211.7,38.41847138]
[1733800231614,3.3927,211.87,211.7,38.41847138]
[1733800231803,3.3927,211.87,211.74,38.41847138]
[1733800232396,3.3927,211.87,211.71,39.12672993]
[1733800232590,3.3927,211.87,211.61,38.41847138]
[1733800232806,10.0,211.82,211.58,38.41847138]
[1733800233007,10.0,211.84,211.6,38.41847138]
[1733800233208,10.0,211.85,211.61,38.41847138]
[1733800233542,10.0,211.8,211.58,38.41847138]
[1733800233721,0.12549,211.72,211.61,38.41847138]
[1733800234017,0.12549,211.72,211.6,38.41847138]
[1733800234629,0.12549,211.72,211.62,38.41847138]
[1733800234918,0.12549,211.72,211.63,38.41847138]
[1733800235211,0.12549,211.72,211.61,38.41847138]
[1733800235789,0.12549,211.72,211.59,38.41847138]
[1733800236124,0.12549,211.72,211.58,38.41847138]
[1733800236499,0.12549,211.72,211.61,38.41847138]
[1733800236699,3.3927,211.87,211.65,38.41847138]
[1733800237103,24.17,211.86,211.63,38.41847138]
[1733800237399,5.29089438,211.87,211.65,38.41847138]
[1733800237994,5.29089438,211.87,211.66,38.41847138]
[1733800238395,15.29089438,211.87,211.64,38.41847138]
[1733800238601,5.29089438,211.87,211.64,38.41847138]
[1733800239006,20.0,211.84,211.64,38.41847138]
[1733800239211,29.46089438,211.87,211.62,38.41847138]
[1733800239212,20.0,211.82,211.62,38.41847138]
[1733800239401,20.0,211.82,211.66,38.41847138]
[1733800239604,5.29089438,211.87,211.7,38.41847138]
[1733800239841,5.29089438,211.87,211.66,38.41847138]
[1733800239995,10.0,211.86,211.62,38.41847138]
[1733800240410,15.29089438,211.87,211.62,38.41847138]
[1733800240618,10.0,211.84,211.62,38.41847138]
[1733800240825,0.12549,211.77,211.6,38.41847138]
[1733800241003,0.12549,211.79,211.6,38.41847138]
[1733800241201,0.12549,211.71,211.6,38.41847138]
[1733800241430,0.12549,211.71,211.54,332.70862829]
[1733800241607,0.12549,211.71,211.62,38.41847138]
[1733800241804,0.12549,211.71,211.6,38.41847138]
[1733800242532,0.12549,211.71,211.62,38.41847138]
[1733800243125,0.12549,211.71,211.6,38.41847138]
[1733800244019,20.0,211.69,211.58,38.41847138]
[1733800244338,0.12549,211.64,211.5,38.41847138]
[1733800244514,23.902374,211.64,211.5,38.41847138]
[1733800244840,0.12549,211.6,211.46,0.70897339]
[1733800245045,0.12549,211.6,211.48,38.41847138]
[1733800245336,0.12549,211.56,211.46,38.41847138]
[1733800245544,0.12549,211.56,211.45,6.3636]
[1733800245720,0.12549,211.56,211.45,38.41847138]
[1733800246045,0.12549,211.56,211.47,38.41847138]
[1733800246410,0.12549,211.56,211.45,38.41847138]
[1733800246824,20.0,211.53,211.38,6.3636]
[1733800247056,3.3927,211.57,211.35,38.41847138]
[1733800247057,23.902374,211.48,211.35,38.41847138]
[1733800247210,0.12549,211.44,211.33,38.41847138]
[1733800247545,0.12549,211.4,211.31,38.41847138]
[1733800248523,0.12549,211.4,211.25,38.41847138]
[1733800249042,23.902374,211.41,211.25,38.41847138]
[1733800249250,0.12549,211.37,211.26,38.41847138]
[1733800249619,20.0,211.34,211.24,39.00568778]
[1733800249818,0.12549,211.33,211.25,38.41847138]
[1733800250228,0.12549,211.33,211.24,1.29705]
[1733800250229,0.12549,211.33,211.27,38.41847138]
[1733800250414,0.12549,211.33,211.26,38.41847138]
[1733800250617,0.12549,211.33,211.27,38.41847138]
[1733800251056,0.12549,211.33,211.25,38.41847138]
[1733800251237,0.12549,211.33,211.24,0.5872164]
[1733800253345,20.0,211.35,211.07,9.86206516]
[1733800253346,23.902374,211.22,211.07,9.86206516]
[1733800253520,23.902374,211.18,211.07,9.86206516]
[1733800253716,0.12549,211.1,211.07,8.3598348]
[1733800254447,20.0,211.09,211.07,8.3598348]
[1733800254627,23.902374,211.08,211.07,8.3598348]
[1733800254943,23.902374,211.08,211.07,7.5835348]
[1733800255327,20.0,211.05,211.02,0.5872164]
[1733800255519,23.902374,211.04,210.93,7.34153825]
[1733800255728,0.12549,211.0,210.93,7.34153825]
[1733800256264,0.12549,211.0,210.94,38.41847138]
[1733800256544,1.88335688,211.14,210.95,39.12934332]
[1733800256731,20.0,211.15,210.95,0.71087194]
[1733800256937,3.3927,211.18,210.97,38.41847138]
[1733800257144,3.3927,211.18,210.97,0.71063839]
[1733800257326,3.3927,211.18,210.97,39.12910977]
[1733800257722,3.3927,211.18,210.98,38.41847138]
[1733800257919,3.3927,211.18,211.0,38.41847138]
[1733800258126,3.3927,211.18,211.02,38.41847138]
[1733800258317,3.3927,211.18,211.01,38.41847138]
[1733800258624,1.84408488,211.23,211.03,38.41847138]
[1733800258828,3.3927,211.27,211.01,38.41847138]
[1733800259028,10.0,211.21,210.95,39.12898392]
[1733800259231,3.3927,211.27,210.94,38.41847138]
[1733800259232,10.0,211.2,210.94,38.41847138]
[1733800259620,20.0,211.16,210.94,38.41847138]
[1733800260026,23.902374,211.15,210.95,38.41847138]
[1733800260255,0.12549,211.07,210.93,47.05834719]
[1733800260655,0.12549,211.07,210.95,38.41847138]
[1733800261029,0.12549,211.07,210.94,0.71088971]
[1733800261536,0.12549,211.07,210.93,46.34757138]
[1733800261846,0.12549,211.07,210.95,38.41847138]
[1733800262155,0.12549,211.07,210.96,0.71074108]
[1733800262455,20.0,211.23,210.99,38.41847138]
[1733800262662,10.0,211.23,211.04,38.41847138]
[1733800262981,10.0,211.19,210.86,10.0]
[1733800263255,10.0,211.15,210.88,38.41847138]
[1733800263434,10.0,211.14,210.89,38.41847138]
[1733800263640,10.0,211.17,210.94,38.41847138]
[1733800263867,20.0,211.18,210.96,38.41847138]
[1733800264025,20.0,211.12,210.95,38.41847138]
[1733800264225,0.12549,211.07,210.97,38.41847138]
[1733800264467,20.0,211.08,210.99,38.41847138]
[1733800264645,11.93342247,211.23,211.01,38.41847138]
[1733800264958,11.93342247,211.23,211.03,38.41847138]
[1733800265128,11.93342247,211.23,210.97,38.41847138]
[1733800265769,21.93342247,211.23,210.97,38.41847138]
[1733800265931,10.0,211.15,210.91,38.41847138]
[1733800266129,10.0,211.11,210.88,38.41847138]
[1733800266432,20.0,211.06,210.87,38.41847138]
[1733800266636,0.12549,211.01,210.89,38.41847138]
[1733800267035,0.12549,211.01,210.87,38.41847138]
[1733800268165,0.12549,210.97,210.87,38.41847138]
[1733800268667,0.12549,210.97,210.89,38.41847138]
[1733800268973,3.3927,211.14,210.96,38.41847138]
[1733800269439,3.3927,211.14,210.94,38.41847138]
[1733800269641,3.3927,211.14,210.93,38.41847138]
[1733800269850,3.3927,211.14,210.91,38.41847138]
[1733800270157,20.0,211.12,210.88,38.41847138]
[1733800270363,10.0,211.11,210.87,38.41847138]
[1733800270560,43.776884,211.13,210.9,38.41847138]
[1733800270748,43.902374,211.1,210.91,38.41847138]
[1733800270942,43.902374,211.1,210.89,38.41847138]
[1733800271141,43.902374,211.1,210.86,38.41847138]
[1733800271339,0.12549,210.99,210.9,38.41847138]
[1733800271644,20.0,211.0,210.91,39.12944552]
[1733800272054,20.0,211.12,210.9,38.41847138]
[1733800272255,20.0,211.08,210.91,38.41847138]
[1733800272642,20.0,211.08,210.9,38.41847138]
[1733800272842,23.902374,211.07,210.9,38.41847138]